[Event "Romanian-ch Youth Open U8 2024"]
[Site "Eforie Nord"]
[Date "2024.04.13"]
[Round "2.1"]
[White "Patarau, Tudor"]
[Black "Badescu, Matei-Andrei"]
[Result "1-0"]
[ECO "B87"]
[WhiteElo "1483"]
[BlackElo "1635"]
[Annotator "NA RC COMBH"]
[PlyCount "41"]
[EventDate "2024.04.10"]
[EventType "swiss"]
[EventCountry "ROU"]
[SourceTitle "playchess.com"]
[Source "ChessBase"]
[SourceQuality "1"]
[TimeControl "5400+30"]

1. e4 {[%emt 0:00:01]} c5 {[%emt 0:00:11]} 2. Nf3 {[%emt 0:00:11]} d6 {[%emt 0:00:03]} 3. d4 {[%emt 0:00:48]} cxd4 {[%emt 0:00:05]} 4. Nxd4 {[%emt 0:00:19]} Nf6 {[%emt 0:00:05]} 5. Nc3 {[%emt 0:00:17]} a6 {[%emt 0:00:10]} 6. Bc4 {[%emt 0:02:17]} e6 {[%emt 0:00:08]} 7. O-O {[%emt 0:00:52]} b5 {[%emt 0:00:14]} 8. Bb3 {[%emt 0:00:29]} b4 {[%emt 0:00:36]} 9. Nce2 {[%emt 0:02:51]} Nxe4 {[%emt 0:00:20]} 10. Ng3 {[%emt 0:00:33]} Nc5 {[%emt 0:00:24]} 11. Re1 {[%emt 0:00:43]} Nxb3 {[%emt 0:02:28]} 12. axb3 {[%emt 0:00:12]} Bb7 {[%emt 0:02:50]} 13. Bd2 {[%emt 0:04:43]} d5 {[%emt 0:00:39]} 14. Qg4 {[%emt 0:03:31]} Bc8 {[%emt 0:00:48]} 15. Ndf5 {[%emt 0:01:13]} Qf6 {[%emt 0:00:31]} 16. Bxb4 {[%emt 0:02:19]} Bxb4 {[%emt 0:02:32]} 17. Qxb4 {[%emt 0:00:26]} Nc6 {[%emt 0:01:41]} 18. Qc5 {[%emt 0:01:44]} Nd8 {[%emt 0:00:36]} 19. Nh5 {[%emt 0:03:01]} Qg5 {[%emt 0:00:40]} 20. Nhxg7+ {[%emt 0:00:24]} Kd7 {[%emt 0:00:08]} 21. Qd6# {[%emt 1:14:06]} 1-0

[Event "Romanian-ch Youth Open U8 2024"]
[Site "Eforie Nord"]
[Date "2024.04.13"]
[Round "2.2"]
[White "Butochnov, Victor"]
[Black "Calotescu, David-Andrei"]
[Result "1-0"]
[ECO "D33"]
[WhiteElo "1634"]
[BlackElo "1457"]
[Annotator "NA RC COMBH"]
[PlyCount "77"]
[EventDate "2024.04.10"]
[EventType "swiss"]
[EventCountry "ROU"]
[SourceTitle "playchess.com"]
[Source "ChessBase"]
[SourceQuality "1"]
[TimeControl "5400+30"]

1. d4 {[%emt 0:00:01]} d5 {[%emt 0:03:00]} 2. c4 {[%emt 0:00:05]} e6 {[%emt 0:00:14]} 3. Nc3 {[%emt 0:00:06]} c5 {[%emt 0:00:44]} 4. cxd5 {[%emt 0:00:09]} exd5 {[%emt 0:00:56]} 5. Nf3 {[%emt 0:00:17]} Nc6 {[%emt 0:01:10]} 6. g3 {[%emt 0:00:08]} Nf6 {[%emt 0:01:45]} 7. Bg5 {[%emt 0:00:11]} Be6 {[%emt 0:09:21]} 8. Bg2 {[%emt 0:00:22]} h6 {[%emt 0:02:04]} 9. Bxf6 {[%emt 0:00:31]} Qxf6 {[%emt 0:00:38]} 10. e3 {[%emt 0:01:20]} c4 {[%emt 0:08:22]} 11. O-O {[%emt 0:00:35]} Bb4 {[%emt 0:26:26]} 12. a3 {[%emt 0:01:59]} Ba5 {[%emt 0:00:17]} 13. b4 {[%emt 0:01:22]} Bb6 {[%emt 0:02:07]} 14. Na4 {[%emt 0:02:18]} O-O {[%emt 0:04:27]} 15. Nc5 {[%emt 0:03:12]} Qe7 {[%emt 0:05:03]} 16. Nd2 {[%emt 0:02:53]} Bxc5 {[%emt 0:04:00]} 17. bxc5 {[%emt 0:00:20]} f5 {[%emt 0:03:33]} 18. Qc2 {[%emt 0:01:57]} b6 {[%emt 0:04:21]} 19. cxb6 {[%emt 0:00:38]} axb6 {[%emt 0:00:24]} 20. Nxc4 {[%emt 0:00:30]} dxc4 {[%emt 0:10:34]} 21. Bxc6 {[%emt 0:00:12]} Rxa3 {[%emt 0:01:22]} 22. d5 {[%emt 0:00:46]} Rc8 {[%emt 0:05:20]} 23. Qxc4 {[%emt 0:00:29]} Rxa1 {[%emt 0:01:51]} 24. Rxa1 {[%emt 0:00:08]} Qc7 {[%emt 0:01:05]} 25. Qb5 {[%emt 0:01:38]} Qe5 {[%emt 0:01:21]} 26. Rd1 {[%emt 0:00:29]} Rd8 {[%emt 0:00:58]} 27. Qxb6 {[%emt 0:00:34]} Rd6 {[%emt 0:00:51]} 28. Qb1 {[%emt 0:01:13]} Bxd5 {[%emt 0:00:37]} 29. Bxd5+ {[%emt 0:00:06]} Rxd5 {[%emt 0:00:13]} 30. Qb3 {[%emt 0:00:09]} Kh7 {[%emt 0:00:57]} 31. Qxd5 {[%emt 0:00:00]} Qxd5 {[%emt 0:00:13]} 32. Rxd5 {[%emt 0:00:00]} Kg6 {[%emt 0:00:07]} 33. f4 {[%emt 0:00:00]} h5 {[%emt 0:00:12]} 34. h4 {[%emt 0:00:00]} Kf6 {[%emt 0:00:22]} 35. e4 {[%emt 0:00:00]} fxe4 {[%emt 0:00:12]} 36. Rxh5 {[%emt 0:00:00]} e3 {[%emt 0:00:12]} 37. Re5 {[%emt 0:00:00]} e2 {[%emt 0:00:33]} 38. Rxe2 {[%emt 0:00:00]} g5 {[%emt 0:00:11]} 39. hxg5+ {[%emt 1:25:22]} 1-0

[Event "Romanian-ch Youth Open U8 2024"]
[Site "Eforie Nord"]
[Date "2024.04.13"]
[Round "2.3"]
[White "Gusa, Ionatan"]
[Black "Vasiloi, Leonard"]
[Result "1/2-1/2"]
[ECO "B01"]
[WhiteElo "1467"]
[BlackElo "1547"]
[Annotator "NA RC COMBH"]
[PlyCount "88"]
[EventDate "2024.04.10"]
[EventType "swiss"]
[EventCountry "ROU"]
[SourceTitle "playchess.com"]
[Source "ChessBase"]
[SourceQuality "1"]
[TimeControl "5400+30"]

1. e4 {[%emt 0:00:05]} d5 {[%emt 0:00:08]} 2. exd5 {[%emt 0:00:09]} Qxd5 {[%emt 0:00:05]} 3. Nc3 {[%emt 0:00:14]} Qa5 {[%emt 0:00:10]} 4. d4 {[%emt 0:00:29]} c6 {[%emt 0:00:11]} 5. Bd2 {[%emt 0:00:37]} Nf6 {[%emt 0:00:07]} 6. Qe2 {[%emt 0:02:06]} Bf5 {[%emt 0:00:03]} 7. Ne4 {[%emt 0:00:23]} Qc7 {[%emt 1:33:16]} 8. Nxf6+ {[%emt 0:00:20]} gxf6 {[%emt 0:00:00]} 9. Nf3 {[%emt 0:01:00]} e6 {[%emt 0:00:00]} 10. O-O-O {[%emt 0:01:13]} Bd6 {[%emt 0:00:00]} 11. Qe1 {[%emt 0:00:57]} Nd7 {[%emt 0:00:00]} 12. Bc4 {[%emt 0:00:53]} O-O-O {[%emt 0:00:00]} 13. h3 {[%emt 0:00:50]} c5 {[%emt 0:00:00]} 14. Nh4 {[%emt 0:01:19]} Bg6 {[%emt 0:00:00]} 15. Nxg6 {[%emt 0:00:22]} hxg6 {[%emt 0:00:00]} 16. d5 {[%emt 0:00:56]} Ne5 {[%emt 0:00:00]} 17. Qe2 {[%emt 0:01:21]} exd5 {[%emt 0:00:00]} 18. Bxd5 {[%emt 0:00:15]} Rhe8 {[%emt 0:00:00]} 19. Qb5 {[%emt 0:00:51]} Nc6 {[%emt 0:00:00]} 20. Bc3 {[%emt 0:01:48]} Be5 {[%emt 0:00:00]} 21. Qxc5 {[%emt 0:02:06]} Bxc3 {[%emt 0:00:00]} 22. Qxc3 {[%emt 0:00:22]} Qf4+ {[%emt 0:00:00]} 23. Kb1 {[%emt 0:01:24]} Qd6 {[%emt 0:00:00]} 24. Bf3 {[%emt 0:00:36]} Qe6 {[%emt 0:00:00]} 25. Rxd8+ {[%emt 0:00:34]} Rxd8 {[%emt 0:00:00]} 26. Re1 {[%emt 0:00:25]} Qd6 {[%emt 0:00:00]} 27. a3 {[%emt 0:00:38]} Qd2 {[%emt 0:00:00]} 28. Bxc6 {[%emt 0:01:24]} Qxc3 {[%emt 0:00:00]} 29. Bxb7+ {[%emt 0:00:13]} Kxb7 {[%emt 0:00:00]} 30. bxc3 {[%emt 0:00:15]} Rd7 {[%emt 0:00:00]} 31. g4 {[%emt 0:00:26]} Kc6 {[%emt 0:00:00]} 32. h4 {[%emt 0:00:29]} Rb7+ {[%emt 0:00:00]} 33. Kc1 {[%emt 0:00:21]} Rb8 {[%emt 0:00:00]} 34. h5 {[%emt 0:00:24]} gxh5 {[%emt 0:00:00]} 35. gxh5 {[%emt 0:02:02]} Rh8 {[%emt 0:00:00]} 36. Rh1 {[%emt 0:00:23]} Rh6 {[%emt 0:00:00]} 37. Kd2 {[%emt 0:00:40]} Kd5 {[%emt 0:00:00]} 38. Ke3 {[%emt 0:01:08]} Kc4 {[%emt 0:00:00]} 39. Kd2 {[%emt 0:00:42]} f5 {[%emt 0:00:00]} 40. Rh4+ {[%emt 0:01:34]} Kd5 {[%emt 0:00:00]} 41. Rd4+ {[%emt 0:00:45]} Kc5 {[%emt 0:00:00]} 42. Rh4 {[%emt 0:00:37]} Kd5 {[%emt 0:00:00]} 43. Rd4+ {[%emt 0:00:48]} Kc5 {[%emt 0:18:00]} 44. Rh4 Kd5 1/2-1/2

[Event "Romanian-ch Youth Open U8 2024"]
[Site "Eforie Nord"]
[Date "2024.04.13"]
[Round "2.4"]
[White "Grigorescu, Stefan"]
[Black "Jugaru, Victor"]
[Result "1-0"]
[ECO "C20"]
[WhiteElo "1546"]
[BlackElo "1354"]
[Annotator "NA RC COMBH"]
[PlyCount "65"]
[EventDate "2024.04.10"]
[EventType "swiss"]
[EventCountry "ROU"]
[SourceTitle "playchess.com"]
[Source "ChessBase"]
[SourceQuality "1"]
[TimeControl "5400+30"]

1. e4 {[%emt 0:00:06]} e5 {[%emt 0:00:26]} 2. Qh5 {[%emt 0:00:41]} Nc6 {[%emt 0:00:38]} 3. Bb5 {[%emt 0:00:57]} Nf6 {[%emt 0:00:18]} 4. Qe2 {[%emt 0:00:23]} Nd4 {[%emt 0:00:35]} 5. Qc4 {[%emt 0:00:21]} Nxb5 {[%emt 0:00:35]} 6. Qxb5 {[%emt 0:00:12]} Nxe4 {[%emt 0:01:14]} 7. Qxe5+ {[%emt 0:00:23]} Qe7 {[%emt 0:00:42]} 8. Qxe7+ {[%emt 0:00:42]} Bxe7 {[%emt 0:00:15]} 9. d3 {[%emt 0:00:16]} Nd6 {[%emt 0:01:03]} 10. Nf3 {[%emt 0:00:07]} O-O {[%emt 0:00:27]} 11. O-O {[%emt 0:00:10]} Bf6 {[%emt 0:00:25]} 12. Nc3 {[%emt 0:00:12]} b6 {[%emt 0:00:31]} 13. Bg5 {[%emt 0:00:22]} Bb7 {[%emt 0:00:27]} 14. Bxf6 {[%emt 0:00:20]} gxf6 {[%emt 0:00:29]} 15. Nd4 {[%emt 0:00:20]} Kh8 {[%emt 0:00:42]} 16. Rfe1 {[%emt 0:00:18]} Rg8 {[%emt 0:00:41]} 17. g3 {[%emt 0:00:09]} Rae8 {[%emt 0:00:48]} 18. Ncb5 {[%emt 0:01:34]} Rxe1+ {[%emt 0:00:59]} 19. Rxe1 {[%emt 0:00:46]} Re8 {[%emt 0:00:03]} 20. Rxe8+ {[%emt 0:01:42]} Nxe8 {[%emt 0:00:12]} 21. Nf5 {[%emt 0:00:35]} c6 {[%emt 0:01:15]} 22. Nbd6 {[%emt 0:00:17]} Nxd6 {[%emt 0:00:35]} 23. Nxd6 {[%emt 0:00:12]} Ba6 {[%emt 0:00:16]} 24. Nxf7+ {[%emt 0:00:10]} Kg8 {[%emt 0:00:23]} 25. Nd6 {[%emt 0:00:35]} Kf8 {[%emt 0:00:43]} 26. Kf1 {[%emt 0:00:25]} Ke7 {[%emt 0:00:24]} 27. Nf5+ {[%emt 0:00:09]} Ke6 {[%emt 0:00:45]} 28. Nh6 {[%emt 0:00:12]} c5 {[%emt 0:00:35]} 29. Ke2 {[%emt 0:00:11]} Bb7 {[%emt 0:00:24]} 30. g4 {[%emt 0:00:27]} d5 {[%emt 0:00:34]} 31. f4 {[%emt 0:00:16]} f5 {[%emt 0:00:30]} 32. Nxf5 {[%emt 0:00:19]} h5 {[%emt 0:00:33]} 33. Ng7+ {[%emt 0:00:16]} 1-0

[Event "Romanian-ch Youth Open U8 2024"]
[Site "Eforie Nord"]
[Date "2024.04.13"]
[Round "3.1"]
[White "Szabo, Viktor"]
[Black "Butochnov, Victor"]
[Result "0-1"]
[ECO "C54"]
[WhiteElo "1670"]
[BlackElo "1634"]
[Annotator "NA RC COMBH"]
[PlyCount "38"]
[EventDate "2024.04.10"]
[EventType "swiss"]
[EventCountry "ROU"]
[SourceTitle "playchess.com"]
[Source "ChessBase"]
[SourceQuality "1"]
[TimeControl "5400+30"]

1. e4 {[%emt 0:00:32]} e5 {[%emt 0:00:04]} 2. Nf3 {[%emt 0:00:09]} Nc6 {[%emt 0:00:07]} 3. Bc4 {[%emt 0:02:03]} Bc5 {[%emt 0:00:08]} 4. c3 {[%emt 0:00:12]} Nf6 {[%emt 0:00:11]} 5. d3 {[%emt 0:00:10]} h6 {[%emt 0:00:13]} 6. a4 {[%emt 0:00:16]} a5 {[%emt 0:00:07]} 7. Qe2 {[%emt 0:00:32]} O-O {[%emt 0:00:16]} 8. O-O {[%emt 0:00:09]} d6 {[%emt 0:00:52]} 9. h3 {[%emt 0:00:07]} Be6 {[%emt 0:00:06]} 10. Bxe6 {[%emt 0:00:09]} fxe6 {[%emt 0:00:06]} 11. Be3 {[%emt 0:00:12]} Bxe3 {[%emt 0:00:53]} 12. Qxe3 {[%emt 0:00:10]} Nh5 {[%emt 0:01:49]} 13. Nh2 {[%emt 0:00:42]} Nf4 {[%emt 0:00:27]} 14. Nf3 {[%emt 0:01:33]} Qf6 {[%emt 0:00:41]} 15. Nh2 {[%emt 0:00:21]} Qg5 {[%emt 0:00:37]} 16. Qf3 {[%emt 0:01:18]} Ne7 {[%emt 0:01:36]} 17. Kh1 {[%emt 0:01:25]} Neg6 {[%emt 0:00:29]} 18. g4 {[%emt 0:00:48]} Qh4 {[%emt 0:00:46]} 19. Rd1 {[%emt 0:02:08]} Nxh3 {[%emt 0:00:28]} 0-1

[Event "Romanian-ch Youth Open U8 2024"]
[Site "Eforie Nord"]
[Date "2024.04.13"]
[Round "3.2"]
[White "Liga, Matei"]
[Black "Grigorescu, Stefan"]
[Result "1-0"]
[ECO "B50"]
[WhiteElo "1504"]
[BlackElo "1546"]
[Annotator "NA RC COMBH"]
[PlyCount "133"]
[EventDate "2024.04.10"]
[EventType "swiss"]
[EventCountry "ROU"]
[SourceTitle "playchess.com"]
[Source "ChessBase"]
[SourceQuality "1"]
[TimeControl "5400+30"]

1. e4 {[%emt 0:00:02]} c5 {[%emt 0:00:03]} 2. Nf3 {[%emt 0:00:34]} d6 {[%emt 0:00:38]} 3. h3 {[%emt 0:00:08]} f5 {[%emt 0:00:10]} 4. d3 {[%emt 0:01:27]} Nf6 {[%emt 0:00:23]} 5. Nc3 {[%emt 0:00:22]} e5 {[%emt 0:00:51]} 6. Be2 {[%emt 0:00:56]} Be6 {[%emt 0:00:33]} 7. Ng5 {[%emt 0:02:32]} h6 {[%emt 0:00:17]} 8. Nxe6 {[%emt 1:28:29]} Qe7 {[%emt 0:00:31]} 9. Nb5 {[%emt 0:00:00]} Na6 {[%emt 0:00:47]} 10. Nxf8 {[%emt 0:00:00]} Rxf8 {[%emt 0:00:36]} 11. Bh5+ {[%emt 0:00:00]} Kd8 {[%emt 0:01:23]} 12. Bf3 {[%emt 0:00:00]} c4 {[%emt 0:03:03]} 13. b3 {[%emt 0:00:00]} cxd3 {[%emt 0:00:24]} 14. cxd3 {[%emt 0:00:00]} d5 {[%emt 0:00:35]} 15. Qd2 {[%emt 0:00:00]} Qd7 {[%emt 0:02:54]} 16. Nc3 {[%emt 0:00:00]} d4 {[%emt 0:01:08]} 17. Ne2 {[%emt 0:00:00]} Nc5 {[%emt 0:00:26]} 18. Ng3 {[%emt 0:00:00]} fxe4 {[%emt 0:00:44]} 19. Nxe4 {[%emt 0:00:00]} Nfxe4 {[%emt 0:00:35]} 20. Bxe4 {[%emt 0:00:00]} Nxe4 {[%emt 1:24:29]} 21. dxe4 {[%emt 0:06:30]} Qc6 {[%emt 0:00:00]} 22. O-O {[%emt 0:00:00]} Qxe4 {[%emt 0:00:00]} 23. Re1 {[%emt 0:00:00]} Qf5 {[%emt 0:00:00]} 24. Bb2 {[%emt 0:00:00]} Rf6 {[%emt 0:00:00]} 25. Rad1 {[%emt 0:00:00]} Rg6 {[%emt 0:00:00]} 26. Bxd4 {[%emt 0:00:00]} exd4 {[%emt 0:00:00]} 27. Qxd4+ {[%emt 0:00:00]} Kc7 {[%emt 0:00:00]} 28. Re7+ {[%emt 0:00:00]} Kb8 {[%emt 0:00:00]} 29. Qd8+ {[%emt 0:00:00]} Qc8 {[%emt 0:00:00]} 30. Qxc8+ {[%emt 0:00:00]} Kxc8 {[%emt 0:00:00]} 31. Re8+ {[%emt 0:00:00]} Kc7 {[%emt 0:00:00]} 32. Rxa8 {[%emt 0:00:00]} Ra6 {[%emt 0:00:00]} 33. Rd2 {[%emt 0:00:00]} Kc6 {[%emt 0:00:00]} 34. Rc8+ {[%emt 0:00:00]} Kb5 {[%emt 0:00:00]} 35. Rc7 {[%emt 0:00:00]} Kb4 {[%emt 0:00:00]} 36. Rxb7+ {[%emt 0:00:00]} Kc3 {[%emt 0:00:00]} 37. Rbd7 {[%emt 0:00:00]} g5 {[%emt 0:00:00]} 38. R7d3+ {[%emt 0:00:00]} Kb4 {[%emt 0:00:00]} 39. Rc2 {[%emt 0:00:00]} Ka3 {[%emt 0:00:00]} 40. Rd4 {[%emt 0:00:00]} h5 {[%emt 0:00:00]} 41. Rd5 {[%emt 0:00:00]} Rg6 {[%emt 0:00:00]} 42. Ra5+ {[%emt 0:00:00]} Kb4 {[%emt 0:00:00]} 43. Rxa7 {[%emt 0:00:00]} Re6 {[%emt 0:00:00]} 44. Ra4+ {[%emt 0:00:00]} Kb5 {[%emt 0:00:00]} 45. Rd2 {[%emt 0:00:00]} Re1+ {[%emt 0:00:00]} 46. Kh2 {[%emt 0:00:00]} Re5 {[%emt 0:00:00]} 47. Rdd4 {[%emt 0:00:00]} Kc5 {[%emt 0:00:00]} 48. Rdb4 {[%emt 0:00:00]} Re2 {[%emt 0:00:00]} 49. Re4 {[%emt 0:00:00]} Rxf2 {[%emt 0:00:00]} 50. Re5+ {[%emt 0:00:00]} Kd6 {[%emt 0:00:00]} 51. Rxg5 {[%emt 0:15:00]} Kc6 {[%emt 0:00:00]} 52. Ra6+ {[%emt 0:00:00]} Kb7 {[%emt 0:00:00]} 53. Rh6 {[%emt 0:00:00]} Rf7 {[%emt 0:00:00]} 54. Rgxh5 {[%emt 0:00:00]} Rg7 {[%emt 0:00:00]} 55. Rh7 {[%emt 0:00:00]} Rxh7 {[%emt 0:00:00]} 56. Rxh7+ {[%emt 0:00:00]} Kc6 {[%emt 0:00:00]} 57. Rh5 {[%emt 0:00:00]} Kb6 {[%emt 0:00:00]} 58. g4 {[%emt 0:00:00]} Kc6 {[%emt 0:00:00]} 59. a4 {[%emt 0:00:00]} Kb6 {[%emt 0:00:00]} 60. g5 {[%emt 0:00:00]} Kc5 {[%emt 0:00:00]} 61. g6+ {[%emt 0:00:00]} Kb4 {[%emt 0:00:00]} 62. g7 {[%emt 0:00:00]} Kxb3 {[%emt 0:00:00]} 63. g8=Q+ {[%emt 0:00:00]} Kxa4 {[%emt 0:00:00]} 64. Qg4+ {[%emt 0:00:00]} Kb3 {[%emt 0:00:00]} 65. Rc5 {[%emt 0:00:00]} Ka3 {[%emt 0:00:00]} 66. Rb5 {[%emt 0:00:00]} Ka2 {[%emt 0:00:00]} 67. Qa4# {[%emt 0:00:00]} 1-0

[Event "Romanian-ch Youth Open U8 2024"]
[Site "Eforie Nord"]
[Date "2024.04.13"]
[Round "3.3"]
[White "Dragoi, Aaron-Mathias"]
[Black "Rosu, Razvan-Mihai"]
[Result "0-1"]
[ECO "B13"]
[WhiteElo "1533"]
[BlackElo "1517"]
[Annotator "NA RC COMBH"]
[PlyCount "118"]
[EventDate "2024.04.10"]
[EventType "swiss"]
[EventCountry "ROU"]
[SourceTitle "playchess.com"]
[Source "ChessBase"]
[SourceQuality "1"]
[TimeControl "5400+30"]

1. e4 {[%emt 0:00:22]} c6 {[%emt 0:10:08]} 2. d4 {[%emt 0:00:07]} d5 {[%emt 0:00:08]} 3. exd5 {[%emt 0:00:16]} cxd5 {[%emt 0:00:12]} 4. Bd3 {[%emt 0:00:16]} Nc6 {[%emt 0:00:15]} 5. c3 {[%emt 0:00:07]} Nf6 {[%emt 0:00:14]} 6. Nf3 {[%emt 0:00:22]} Bg4 {[%emt 0:00:13]} 7. O-O {[%emt 0:00:29]} e6 {[%emt 0:00:10]} 8. Bf4 {[%emt 0:00:18]} Bd6 {[%emt 0:02:55]} 9. Bxd6 {[%emt 0:00:12]} Qxd6 {[%emt 0:00:10]} 10. Nbd2 {[%emt 0:00:37]} O-O {[%emt 0:00:18]} 11. h3 {[%emt 0:02:28]} Bh5 {[%emt 0:00:45]} 12. Re1 {[%emt 0:01:23]} a5 {[%emt 0:14:02]} 13. g4 {[%emt 0:07:20]} Bg6 {[%emt 0:00:21]} 14. Bxg6 {[%emt 0:00:26]} hxg6 {[%emt 0:00:14]} 15. Ne5 {[%emt 0:01:53]} Nd7 {[%emt 0:10:23]} 16. Ndf3 {[%emt 0:06:20]} a4 {[%emt 0:04:34]} 17. Nxd7 {[%emt 0:04:30]} Qxd7 {[%emt 0:00:11]} 18. Ne5 {[%emt 0:00:08]} Qc7 {[%emt 0:02:07]} 19. Qf3 {[%emt 0:06:25]} Nxe5 {[%emt 0:01:30]} 20. Rxe5 {[%emt 0:01:31]} a3 {[%emt 0:00:41]} 21. b3 {[%emt 0:06:40]} Rac8 {[%emt 0:00:32]} 22. c4 {[%emt 0:07:46]} dxc4 {[%emt 0:00:38]} 23. Rc1 {[%emt 0:05:46]} Qb6 {[%emt 0:01:41]} 24. Rc3 {[%emt 0:10:03]} Qxd4 {[%emt 0:01:51]} 25. Re4 {[%emt 0:01:52]} Qd2 {[%emt 0:00:33]} 26. Qe3 {[%emt 0:04:50]} Qxa2 {[%emt 0:01:09]} 27. Qc1 {[%emt 0:01:51]} Qb2 {[%emt 0:01:20]} 28. Qxb2 {[%emt 0:02:42]} axb2 {[%emt 0:00:11]} 29. Re1 {[%emt 0:00:15]} cxb3 {[%emt 0:00:11]} 30. Rxb3 {[%emt 0:00:08]} Rc1 {[%emt 0:00:10]} 31. Rf1 {[%emt 0:00:13]} Rxf1+ {[%emt 0:00:58]} 32. Kxf1 {[%emt 0:00:06]} Rb8 {[%emt 0:00:05]} 33. Rxb2 {[%emt 0:00:10]} Kf8 {[%emt 0:00:08]} 34. Ke2 {[%emt 0:00:08]} Ke7 {[%emt 0:00:05]} 35. Kd3 {[%emt 0:00:09]} Kd6 {[%emt 0:00:07]} 36. Kd4 {[%emt 0:00:16]} b5 {[%emt 0:00:21]} 37. f4 {[%emt 0:04:17]} b4 {[%emt 0:00:09]} 38. Rb3 {[%emt 0:00:08]} f6 {[%emt 0:00:44]} 39. h4 {[%emt 0:02:01]} Rb5 {[%emt 0:00:44]} 40. Kc4 {[%emt 0:01:46]} Kc6 {[%emt 0:00:33]} 41. Kd4 {[%emt 0:00:36]} Kb6 {[%emt 0:00:19]} 42. Kc4 {[%emt 0:03:51]} Kc6 {[%emt 0:00:54]} 43. Kd4 {[%emt 0:01:09]} e5+ {[%emt 0:00:22]} 44. fxe5 {[%emt 0:02:12]} fxe5+ {[%emt 0:00:04]} 45. Kc4 {[%emt 0:02:34]} Rb8 {[%emt 0:00:12]} 46. Rb1 {[%emt 0:11:27]} b3 {[%emt 0:00:19]} 47. Rb2 {[%emt 0:00:26]} Kd6 {[%emt 0:00:15]} 48. Rd2+ {[%emt 0:01:42]} Kc6 {[%emt 0:00:17]} 49. Rb2 {[%emt 0:00:12]} Rb7 {[%emt 0:00:14]} 50. Kc3 {[%emt 0:02:33]} Kc5 {[%emt 0:00:06]} 51. g5 {[%emt 0:00:18]} Rb8 {[%emt 0:00:06]} 52. Kd3 {[%emt 0:00:49]} Kd5 {[%emt 0:00:09]} 53. Ke3 {[%emt 0:01:32]} e4 {[%emt 0:00:15]} 54. Rd2+ {[%emt 0:00:16]} Ke5 {[%emt 0:00:05]} 55. Rb2 {[%emt 0:00:05]} Rb7 {[%emt 0:00:11]} 56. Ke2 {[%emt 0:00:48]} Kd4 {[%emt 0:00:11]} 57. Kd2 {[%emt 0:00:52]} e3+ {[%emt 0:00:10]} 58. Kd1 {[%emt 0:00:31]} Kc3 {[%emt 0:00:13]} 59. Kc1 {[%emt 0:00:08]} Rf7 {[%emt 0:00:15]} 0-1

[Event "Romanian-ch Youth Open U8 2024"]
[Site "Eforie Nord"]
[Date "2024.04.13"]
[Round "3.4"]
[White "Stan, Vlad-Stefan G."]
[Black "Mihai, Adam-Alexandru"]
[Result "0-1"]
[ECO "B40"]
[WhiteElo "1415"]
[BlackElo "1533"]
[Annotator "NA RC COMBH"]
[PlyCount "66"]
[EventDate "2024.04.10"]
[EventType "swiss"]
[EventCountry "ROU"]
[SourceTitle "playchess.com"]
[Source "ChessBase"]
[SourceQuality "1"]
[TimeControl "5400+30"]

1. e4 {[%emt 0:00:03]} c5 {[%emt 0:00:09]} 2. Bc4 {[%emt 0:00:38]} e6 {[%emt 0:00:24]} 3. Nf3 {[%emt 0:00:11]} a6 {[%emt 0:00:11]} 4. Nc3 {[%emt 0:00:13]} b5 {[%emt 0:00:13]} 5. Be2 {[%emt 0:00:47]} Bb7 {[%emt 0:00:08]} 6. d4 {[%emt 0:00:15]} cxd4 {[%emt 0:00:07]} 7. Nxd4 {[%emt 0:00:08]} Nc6 {[%emt 0:00:48]} 8. Nxc6 {[%emt 0:00:12]} Bxc6 {[%emt 0:00:31]} 9. Bf3 {[%emt 0:00:19]} Bb4 {[%emt 0:01:10]} 10. Bd2 {[%emt 0:00:19]} Nf6 {[%emt 0:00:13]} 11. Qe2 {[%emt 0:00:21]} Rc8 {[%emt 0:00:52]} 12. O-O-O {[%emt 0:00:25]} Qc7 {[%emt 0:00:59]} 13. e5 {[%emt 0:00:41]} Bxf3 {[%emt 0:01:22]} 14. gxf3 {[%emt 0:00:18]} Bxc3 {[%emt 0:00:38]} 15. bxc3 {[%emt 0:00:41]} Nd5 {[%emt 0:00:44]} 16. Rhg1 {[%emt 0:00:37]} g6 {[%emt 0:00:59]} 17. Qd3 {[%emt 0:01:08]} O-O {[%emt 0:01:47]} 18. Bh6 {[%emt 0:00:28]} Rfe8 {[%emt 0:01:03]} 19. f4 {[%emt 0:00:41]} Qxc3 {[%emt 0:00:53]} 20. Qxc3 {[%emt 0:00:51]} Rxc3 {[%emt 0:00:14]} 21. f5 {[%emt 0:00:29]} Rec8 {[%emt 0:00:44]} 22. Rd2 {[%emt 0:00:41]} R3c7 {[%emt 0:02:29]} 23. fxg6 {[%emt 0:00:33]} hxg6 {[%emt 0:00:17]} 24. Rg3 {[%emt 0:00:24]} Rc3 {[%emt 0:01:01]} 25. Rxc3 {[%emt 0:00:26]} Rxc3 {[%emt 0:00:12]} 26. Rd4 {[%emt 0:00:36]} Rh3 {[%emt 0:00:43]} 27. Be3 {[%emt 0:00:20]} Kf8 {[%emt 0:01:29]} 28. Rd3 {[%emt 0:00:23]} Nxe3 {[%emt 0:00:26]} 29. fxe3 {[%emt 0:00:16]} Ke7 {[%emt 0:00:41]} 30. Ra3 {[%emt 0:00:30]} g5 {[%emt 0:02:01]} 31. Kd1 {[%emt 0:01:02]} g4 {[%emt 0:00:57]} 32. Ke1 {[%emt 0:00:14]} Rxh2 {[%emt 0:00:19]} 33. e4 {[%emt 0:00:20]} Rxc2 {[%emt 0:00:13]} 0-1

[Event "Romanian-ch Youth Open U8 2024"]
[Site "Eforie Nord"]
[Date "2024.04.14"]
[Round "4.1"]
[White "Butochnov, Victor"]
[Black "Rosu, Razvan-Mihai"]
[Result "1/2-1/2"]
[ECO "B11"]
[WhiteElo "1634"]
[BlackElo "1517"]
[Annotator "NA RC"]
[PlyCount "73"]
[EventDate "2024.04.10"]
[EventType "swiss"]
[EventCountry "ROU"]
[SourceTitle "playchess.com"]
[Source "ChessBase"]
[SourceQuality "1"]
[TimeControl "5400+30"]

1. e4 {[%emt 0:00:01]} c6 {[%emt 0:10:05]} 2. Nf3 {[%emt 0:00:05]} d5 {[%emt 0:00:07]} 3. Nc3 {[%emt 0:00:05]} Bg4 {[%emt 0:00:09]} 4. Be2 {[%emt 0:00:14]} e6 {[%emt 0:00:12]} 5. O-O {[%emt 0:00:19]} Nf6 {[%emt 0:00:40]} 6. d3 {[%emt 0:00:29]} Be7 {[%emt 0:00:51]} 7. Bf4 {[%emt 0:00:08]} O-O {[%emt 0:01:02]} 8. Qd2 {[%emt 0:01:02]} dxe4 {[%emt 0:03:37]} 9. dxe4 {[%emt 0:00:38]} Qxd2 {[%emt 0:01:26]} 10. Nxd2 {[%emt 0:00:21]} Bxe2 {[%emt 0:00:18]} 11. Nxe2 {[%emt 0:00:09]} Nbd7 {[%emt 0:00:48]} 12. Rfd1 {[%emt 0:01:00]} Nc5 {[%emt 0:05:40]} 13. f3 {[%emt 0:00:23]} Rfd8 {[%emt 0:05:03]} 14. Nc4 {[%emt 0:00:37]} Rd7 {[%emt 0:14:59]} 15. b4 {[%emt 0:01:29]} Na6 {[%emt 0:05:10]} 16. c3 {[%emt 0:00:12]} Rad8 {[%emt 0:01:04]} 17. Rd2 {[%emt 0:00:48]} Rxd2 {[%emt 0:00:32]} 18. Nxd2 {[%emt 0:00:07]} Nh5 {[%emt 0:03:12]} 19. Be3 {[%emt 0:00:13]} Rd3 {[%emt 0:01:03]} 20. Kf2 {[%emt 0:00:19]} Nc7 {[%emt 0:02:51]} 21. a4 {[%emt 0:02:28]} b5 {[%emt 0:03:39]} 22. a5 {[%emt 0:00:17]} a6 {[%emt 0:00:20]} 23. Rd1 {[%emt 0:00:21]} Rd7 {[%emt 0:07:30]} 24. Bd4 {[%emt 0:01:27]} Nf6 {[%emt 0:02:11]} 25. Ke1 {[%emt 0:01:45]} Kf8 {[%emt 0:00:59]} 26. Nb3 {[%emt 0:00:13]} Ke8 {[%emt 0:02:39]} 27. Nc5 {[%emt 0:00:12]} Bxc5 {[%emt 0:00:37]} 28. Bxc5 {[%emt 0:00:08]} Rxd1+ {[%emt 0:04:13]} 29. Kxd1 {[%emt 0:00:08]} Kd7 {[%emt 0:02:19]} 30. Nd4 {[%emt 0:00:23]} e5 {[%emt 0:02:53]} 31. Nf5 {[%emt 0:00:09]} Ne6 {[%emt 0:00:55]} 32. Bd6 {[%emt 0:00:46]} g6 {[%emt 0:00:47]} 33. Bxe5 {[%emt 0:00:05]} gxf5 {[%emt 0:00:36]} 34. Bxf6 {[%emt 0:00:10]} fxe4 {[%emt 0:00:25]} 35. fxe4 {[%emt 0:00:13]} Nf4 {[%emt 0:01:39]} 36. g3 {[%emt 0:00:46]} Ng6 {[%emt 0:00:18]} 37. Kd2 {[%emt 0:00:39]} 1/2-1/2